[Event "Mukachevo Masters IM 2018"]
[Site "Mukachevo"]
[Date "2018.10.21"]
[Round "8"]
[White "Vachylia, Andrii"]
[Black "Larkin, Vladyslav"]
[Result "0-1"]
[ECO "D15"]
[WhiteElo "2238"]
[BlackElo "2234"]
[Annotator "NA"]
[PlyCount "88"]
[EventDate "2018.08.17"]
[EventType "swiss"]
[EventCountry "UKR"]
[SourceTitle "playchess.com"]
[Source "ChessBase"]
[SourceQuality "1"]
[TimeControl "5400+30"]

1. d4 {[%emt 0:00:00]} d5 {[%emt 0:00:03]} 2. c4 {[%emt 0:00:00]} c6 {[%emt 0:00:05]} 3. Nf3 {[%emt 0:00:00]} Nf6 {[%emt 0:00:11]} 4. Nc3 {[%emt 0:00:00]} Bf5 {[%emt 0:00:19]} 5. Qb3 {[%emt 0:06:44]} Qb6 {[%emt 0:00:19]} 6. c5 {[%emt 0:00:15]} Qc7 {[%emt 0:09:37]} 7. Bf4 {[%emt 0:00:09] LiveBook: 36 Games} Qc8 {[%emt 0:00:03]} 8. e3 {[%emt 0:00:13] D15: Damengambit (Slawische Verteidigung)} Nbd7 {[%emt 0:00:20]} 9. Be2 {[%emt 0:02:32]} e6 {[%emt 0:00:21]} 10. O-O {[%emt 0:01:23]} Be7 {[%emt 0:10:14]} 11. Qd1 {[%emt 0:00:16]} Bd8 $146 {[%emt 0:05:25]} ({Vorgänger:} 11... h6 12. b4 b6 13. Rc1 O-O 14. h3 a5 15. a3 Qb7 16. Qd2 {½-½ (47) Wagner,C (2330)-Rausis,I (2495) Paris 1994}) 12. Nh4 {[%emt 0:05:25]} Bc7 {[%emt 0:08:54]} 13. Nxf5 {[%emt 0:00:40]} exf5 {[%emt 0:00:06]} 14. Bd3 {[%emt 0:01:41]} Bxf4 {[%emt 0:00:23]} 15. exf4 {[%emt 0:00:06]} g6 {[%emt 0:00:06]} 16. f3 {[%emt 0:02:34]} Qc7 {[%emt 0:04:01]} 17. Qe1+ {[%emt 0:00:21]} Kf8 {[%emt 0:00:23]} 18. Qh4 {[%emt 0:00:10]} Kg7 {[%emt 0:00:47]} 19. Ne2 {[%emt 0:02:10]} Rhe8 {[%emt 0:09:07]} 20. Rad1 {[%emt 0:00:41]} (20. Ng3 $11) 20... b6 {[%emt 0:05:58]} 21. Rf2 {[%emt 0:11:57]} (21. b4 $15) 21... bxc5 {[%emt 0:07:56]} 22. dxc5 {[%emt 0:00:05]} Qa5 {[%emt 0:00:32]} 23. g4 {[%emt 0:00:21]} fxg4 {[%emt 0:07:51]} 24. fxg4 {[%emt 0:03:02]} Qxc5 {[%emt 0:00:42]} 25. Ng3 {[%emt 0:01:09]} Rad8 {[%emt 0:02:17]} 26. g5 {[%emt 0:07:36]} Ne4 {[%emt 0:00:29]} 27. Bxe4 {[%emt 0:00:11]} dxe4 {[%emt 0:00:07]} 28. b4 {[%emt 0:00:25]} Qxb4 {[%emt 0:02:24]} 29. f5 {[%emt 0:02:54]} Kg8 {[%emt 0:09:23]} 30. Rfd2 {[%emt 0:10:50]} Qb6+ {[%emt 0:01:23]} 31. Kg2 {[%emt 0:00:09]} Nc5 {[%emt 0:00:29]} 32. Kh3 {[%emt 0:05:53]} Rxd2 {[%emt 0:01:47]} 33. Rxd2 {[%emt 0:00:04]} Nd3 {[%emt 0:01:20]} 34. Re2 {[%emt 0:06:28]} Qg1 {[%emt 0:01:32]} 35. f6 {[%emt 0:00:38]} h5 {[%emt 0:00:34]} 36. gxh6 {[%emt 0:01:38]} Kh7 {[%emt 0:00:08]} 37. Qg4 {[%emt 0:02:43]} Re6 {[%emt 0:08:30]} 38. Nxe4 {[%emt 0:00:40]} Qxg4+ {[%emt 0:00:21]} 39. Kxg4 {[%emt 0:00:05]} Rxe4+ {[%emt 0:00:03]} 40. Rxe4 {[%emt 0:00:00]} Nf2+ {[%emt 0:00:00]} 41. Kf4 {[%emt 0:00:00]} Nxe4 {[%emt 0:00:00]} 42. Kxe4 {[%emt 0:00:00]} Kxh6 {[%emt 0:00:00]} 43. a4 {[%emt 0:00:00]} Kg5 {[%emt 0:00:00]} 44. Ke5 {[%emt 0:00:00] [#]} a5 $11 {[%emt 0:00:00]} ({Black should try} 44... c5 $1 $19 {[%cal Rc5c4]} 45. Ke4 Kxf6) 0-1